Workbook

Sheet InputSheet
A1: Parameter | B1: Units | C1: Type | D1: Default | G1: end
A2: Rail Name | C2: Req | E2: TPS548C26EVM
A3: Part Number | C3: Req | E3: TPS548C26
A4: Vin_min | B4: V | C4: Opt | D4: Vin_nom*0.8 | E4: 4.5
A5: Vin_nom | B5: V | C5: Req | E5: 12 | H5: Directions:
A6: Vin_max | B6: V | C6: Opt | D6: Vin_nom*1.1 | E6: 18 | H6: Check/Calculate Selected Column
A7: Vout | B7: V | C7: Req | E7: 3.3 | H7: Select any cell in the column of the design you would like to check.
A8: Iout | B8: A | C8: Opt | D8: Io_max_IC | E8: 35 | H8: Click on the Check/Calculate to send the input values to the DeviceCalculator worksheet.
A9: dVo_ripple_perc | C9: Opt | D9: 0.01 | E9: 0.01 | H9: The calculated results on the DeviceCalculator worksheet are then pulled back to check the design.
A10: dVo_trans_perc | C10: Opt | D10: 0.04 | E10: 0.025
A11: Io_step | B11: A | C11: Opt | D11: Iout*0.5 | E11: =E8/4 -> 8.75 | H11: Insert New Design
A12: Slewrate_Io_step | B12: A/µs | C12: Opt | D12: 10 | E12: 10 | H12: Click on Insert New Design to add another column to check another design.
A13: fsw_input | C13: Req | E13: 600 | H13: To delete a design that is no longer needed, right click on the column letter then select delete.
A14: LL_mode_input | C14: Req | E14: DCM
A15: fsw_select | B15: kHz | C15: Calc | E15: 600 | H15: Pull Values from DeviceCalculator Sheet
A16: LL_mode_select | C16: Calc | E16: DCM | H16: The DeviceCalculator worksheet has more details to aid in the design.
A17: Lout | B17: µH | C17: Opt | D17: L_rec | E17: 0.4 | H17: Updates to the design can be mode in the DeviceCalculator sheet.
A18: DCR | B18: mΩ | C18: Opt | D18: Rdson_LS | E18: 0.8 | H18: After making updates, click on Pull Values to use the values on the DeviceCalculator sheet and check them.
A19: Tol_L | C19: Opt | D19: 0.2 | E19: 0.2
A20: I_lim_sel | B20: kΩ | C20: Req | E20: 39 | H20: Check/Calculate All Columns
A21: R_I2C_rec
A22: Io_max_min | B22: A | C22: Calc | E22: 42.11822917 | H22: This will run Check/Calculate Selected Column on all designs
A23: N_cer | C23: Opt | D23: 1 | E23: 6
A24: Cout_single_cer | B24: µF | C24: Opt | D24: Cout_min | E24: 22
A25: ESR_single_cer | B25: mΩ | C25: Opt | D25: 1 | E25: 5
A26: Cer_derating | C26: Opt | D26: 0.8 | E26: 0.6
A27: N_bulk | C27: Opt | D27: 0 | E27: 2
A28: Cout_single_bulk | B28: µF | C28: Opt | D28: 0.1 | E28: 220
A29: ESR_single_bulk | B29: mΩ | C29: Opt | D29: 1 | E29: 10
A30: Vo_undershoot | B30: mV | C30: Calc | E30: 47.38925441
A31: Vo_overshoot | B31: mV | C31: Calc | E31: 8.93711771
A32: Vo_ripple | B32: mV | C32: Calc | E32: 28.74528195
A33: Vi_ripple_percent | C33: Opt | D33: 0.04 | E33: 0.04
A34: Cin_cer | B34: µF | C34: Opt | D34: Cin_min | E34: =6*10 -> 60
A35: Cin_derating | C35: Opt | D35: 0.5 | E35: 0.5
A36: Vi_ripple | B36: mV | C36: Calc | E36: 190.1234568
A37: Iin_rms | B37: A | C37: Calc | E37: 15.49600318
A38: Rfb_b | B38: kΩ | C38: Opt | D38: Rfb_b_rec | E38: 5.36
A39: Rfb_t | B39: kΩ | C39: Opt | D39: Rfb_t_NSV | E39: 16.9
A40: Vout_calc | B40: V | C40: Calc | E40: 3.32238806
A41: Cff | B41: pF | C41: Opt | D41: Cff_NSV | E41: 220
A42: Rff | B42: kΩ | C42: Opt | D42: Rff_NSV | E42: 0
A43: Css | B43: nF | C43: Opt | D43: 22 | E43: 22
A44: Tss | B44: ms | C44: Calc
A45: Icout_ss | B45: A | C45: Calc
A46: Ren_b | B46: kΩ | C46: Opt | D46: 0 | E46: 47
A47: Ren_t | B47: kΩ | C47: Opt | D47: 0 | E47: 120
A48: Vstart_typ | B48: kΩ | C48: Calc | E48: 4.287829787
A49: Vstop_typ | B49: kΩ | C49: Calc | E49: 3.573191489
A50: Cvcc | B50: µF | C50: Opt | D50: Cvcc_rec | E50: 4.7
A51: Cboot | B51: µF | C51: Opt | D51: Cboot_rec | E51: 0.1
A52: Rboot | B52: Ω | C52: Opt | D52: Rboot_rec | E52: 0
A53: Rpg | B53: kΩ | C53: Opt | D53: Rpg_rec | E53: 10
A54: R_mode_check | C54: Check | E54: Pass
A55: Lout_check | C55: Check | E55: Pass
A56: Rtrip_check | C56: Check | E56: Pass
A57: Cout_check | C57: Check | E57: Pass
A58: Cin_check | C58: Check | E58: Caution: Check Cin. Not enough capacitance to meet Vi_ripple_target of 180mV.
A59: FB_network_check | C59: Check | E59: Caution: Check FF cap. Selected FF cap value is 0.5× the recommended value.
A60: EN_divider_check | C60: Check | E60: Pass
A61: Cvcc_Cboot_Rpg_check | C61: Check | E61: Pass

Sheet DeviceCalculator
B1: Design Calculations | J1: Key
B2: Parameter | C2: Input | D2: Recommended | E2: Selected Value | F2: Calculated with Selected Value | G2: Units | H2: Description | J2: User Entered Value
J3: Fixed IC Parameter/I2
J4: Calculated Parameter
J5: Recommended Component Value
J6: Design Caution
J7: Design Warning
B8: Choose Device
B9: Part Number | C9: TPS548C26 | H9: Select IC part number
B10: Vin_min_bias | C10: =VLOOKUP($C$9,partData!$A$3:$ZZ$5,7,FALSE) -> 2.7 | G10: V | H10: IC rated minimum input voltage with external bias
B11: Vin_min_IC | C11: =VLOOKUP($C$9,partData!$A$3:$ZZ$5,2,FALSE) -> 4 | G11: V | H11: IC rated minimum input voltage with internal bias
B12: Vin_max_IC | C12: =VLOOKUP($C$9,partData!$A$3:$ZZ$5,3,FALSE) -> 18 | G12: V | H12: IC rated maximum input voltage
B13: Vcc | C13: =VLOOKUP($C$9,partData!$A$3:$ZZ$5,6,FALSE) -> 4.5 | G13: V | H13: Internal VCC regulator output voltage
B14: Vref | C14: =VLOOKUP($C$9,partData!$A$3:$ZZ$5,5,FALSE) -> 0.8 | G14: V | H14: Internal voltage reference
B15: ton_min | C15: =VLOOKUP($C$9,partData!$A$3:$ZZ$5,10,FALSE) -> 50 | G15: ns | H15: Typical minimum on-time
B16: toff_min_max | C16: =VLOOKUP($C$9,partData!$A$3:$ZZ$5,11,FALSE) -> 180 | G16: ns | H16: Worst case minimum off-time
B17: Io_max_IC | C17: =VLOOKUP($C$9,partData!$A$3:$ZZ$5,4,FALSE) -> 35 | G17: A | H17: IC rated maximum output current
B18: Ioc_valley_max | C18: =VLOOKUP($C$9,partData!$A$3:$ZZ$5,16,FALSE) -> 39 | G18: A | H18: Maximum valley current limit setting
B19: Ioc_neg_max | C19: =VLOOKUP($C$9,partData!$A$3:$ZZ$5,17,FALSE) -> -20 | G19: A | H19: Maximum negative current limit setting
B20: OCF_response | C20: =VLOOKUP($C$9,partData!$A$3:$L$5,12,FALSE) -> Hiccup | H20: Over current fault response
B21: OVF_response | C21: =VLOOKUP($C$9,partData!$A$3:$M$5,13,FALSE) -> Latch Off | H21: Over voltage fault response
B22: Rdson_HS | C22: =VLOOKUP($C$9,partData!$A$3:$ZZ$5,8,FALSE) -> 4 | G22: mΩ | H22: High-side FET Rdson
B23: Rdson_LS | C23: =VLOOKUP($C$9,partData!$A$3:$ZZ$5,9,FALSE) -> 1 | G23: mΩ | H23: Low-side FET Rdson
B24: EN_rise | C24: =VLOOKUP($C$9,partData!$A$3:$ZZ$5,14,FALSE) -> 1.2 | G24: V | H24: EN rising voltage threshold
B25: EN_fall | C25: =VLOOKUP($C$9,partData!$A$3:$ZZ$5,15,FALSE) -> 1 | G25: V | H25: EN falling voltage threshold
B26: Input System Parameters
B27: Vin_min | C27: 9.6 | G27: V | H27: Minimum input voltage
B28: Vin_nom | C28: 12 | G28: V | H28: Nominal input voltage
B29: Vin_max | C29: 13.2 | G29: V | H29: Maximum input voltage
B30: Vout | C30: 5.1 | G30: V | H30: Output voltage
B31: Iout | C31: 20 | G31: A | H31: Maximum output current
B32: =CONCATENATE("Select the Switching Frequency and Light Load operation mode (", IF(partData!C15=partData!B10,"MODE pin",partData!C15), ")") -> Select the Switching Frequency and Light Load operation mode (MODE pin)
B33: fsw_input | C33: 800 | G33: kHz | H33: Input desired fsw option
B34: LL_mode_input | C34: FCCM | H34: Input desired light load operation mode
B35: fsw_max_ton | D35: =Vout/Vin_max*1/(ton_min_sec)*0.001 -> 7727.272727 | G35: kHz | H35: Maximum fsw limited by Vin_max and minimum on-time
B36: fsw_max_toff | D36: =(Vin_min-Vout-Iout*2*(DCR_Ohm+Rdson_HS_Ohm))/(toff_min_max_sec*(Vin_min-Iout*2*(Rdson_HS_Ohm-Rdson_LS_Ohm)))*10^-3 -> 2304.571027 | G36: kHz | H36: Maximum fsw allowed limited by Vin_min and minimum off-time (Depends on inductor DCR and includes 2x multiplier on resistance for margin)
B37: R_mode_rec | D37: =IF(OR(PartNumber="TPS544C27",PartNumber="TPS548C26"),VLOOKUP(CONCATENATE(C33,C34),partData!E18:H26,4,0),partData!C15) -> Float | G37: kΩ | H37: MODE pin connection or resistor to AGND with input values
B38: R_mode | E38: Float | G38: kΩ | H38: Selected MODE pin connection or resistor to AGND
B39: (33h) FREQUENCY_SWITCH sug | D39: =IF(PartNumber="TPS544C26",VLOOKUP(fsw,partData!F30:G33,2,0),partData!B10) -> Pinstrap | G39: kΩ | H39: Suggested FREQUENCY_SWITCH value
B40: (33h) FREQUENCY_SWITCH | E40: 0x01 | G40: kΩ | H40: Selected FREQUENCY_SWITCH value
B41: (A0h) SYS_CONFIG1 [7] sug | D41: =IF(PartNumber="TPS544C26",VLOOKUP(C34,partData!I30:J31,2,0),partData!B10) -> Pinstrap | G41: kΩ | H41: Suggested (A0h) SYS_CONFIG1 bit 7 value
B42: (A0h) SYS_CONFIG1 [7] | E42: 1 | G42: kΩ | H42: Selected (A0h) SYS_CONFIG1 bit 7 value
B43: fsw_select | F43: =IF(PartNumber="TPS544C26",VLOOKUP(E40,partData!G30:H33,2,0),VLOOKUP(R_mode,partData!H18:J26,2,0)) -> 800 | G43: kHz | H43: fsw with selected MODE configuration
B44: LL_mode_select | F44: =IF(PartNumber="TPS544C26",VLOOKUP(E42,partData!J30:K31,2,0),VLOOKUP(R_mode,partData!H18:J26,3,0)) -> FCCM | H44: Light load operation mode with selected MODE configuration
B45: Choose the Output Inductor (Lout)
B46: The inductance is selected based on a p-p ripple current target. Smaller L reduces solution size while larger L reduces AC loss.
B47: Kind | C47: 0.2 | H47: Target ripple/Iout ratio (typically between 0.2 to 0.4)
B48: L_target | D48: =((Vin_max-Vout)*Vout)/(Iout*Kind*Vin_max*fsw_select)*1000 -> 0.9779829545 | G48: µH | H48: Target inductor value
B49: L_min | D49: =((Vin_max-Vout)*Vout)/(Io_max_IC*0.5*Vin_max*fsw_select)*1000 -> 0.223538961 | G49: µH | H49: Minimum recommended inductance (ripple = 50% Iout_max_IC)
B50: L_max | D50: =((Vin_max-Vout)*Vout)/(Io_max_IC*0.1*Vin_max*fsw_select)*1000 -> 1.117694805 | G50: µH | H50: Maximum recommended inductance (ripple = 10% Iout_max_IC)
B51: L_rec | D51: =MIN(MAX(D49,D48),D50) -> 0.9779829545 | G51: µH | H51: Recommended inductance value
B52: Lout | E52: 0.3 | G52: µH | H52: Selected inductance
B53: DCR | E53: 10.187 | G53: mΩ | H53: DC resistance of selected inductor
B54: Tol_L | E54: 0.2 | H54: Tolerance of inductance for selected inductor
B55: Iripple_max | F55: =1000*((Vin_max-Vout)*Vout)/(Lout*(1-Tol_L)*Vin_max*fsw_select) -> 16.29971591 | G55: A | H55: Inductor ripple current at Vin_max (Includes Tol_L. Used for DC ripple calculations. If red, risk of hitting negative OC)
B56: Ipeak | F56: =Iout+(Iripple_max/2) -> 28.14985795 | G56: A | H56: Full load peak current at Vin_max
B57: Irms | F57: =SQRT(Iout^2+(Iripple_max^2)/12) -> 20.54604735 | G57: A | H57: Inductor rms current at Vin_max
B58: Iripple_min | F58: =1000*((Vin_min-Vout)*Vout)/(Lout*(1+Tol_L)*Vin_min*fsw_select) -> 8.30078125 | H58: Inductor ripple current at Vin_min (includes Tol_L)
B59: Ivalley | F59: =Iout-(Iripple_min/2) -> 15.84960938 | G59: A | H59: Full load valley current at Vin_min (used for I_lim calculations)
B60: Set current limit (Rtrip) and I2C Address
B61: Tol_ILIM | D61: 0.1 | H61: Ilim tolerance
B62: I_lim_target | D62: =Ivalley -> 15.84960938 | G62: A | H62: Recommended current limit target (Includes margin for Tol_L and Ilim tolerance)
B63: I_lim_rec | D63: =VLOOKUP(TRUE,partData!C37:E44,3,FALSE) -> 19 | G63: kΩ | H63: Recommended ILIM setting
B64: I_lim_sel | C64: 26 | G64: kΩ | H64: Selected ILIM setting
B65: R_ILIM_rec | D65: =IF(OR(PartNumber="TPS544C27",PartNumber="TPS548C26"),VLOOKUP(I_lim_sel,partData!B37:D44,3,FALSE),partData!C15) -> 16.2 | G65: kΩ | H65: Suggested ILIM resistor for selected ILIm setting
B66: R_ILIM | E66: 16.2 | G66: kΩ | H66: Selected ILIM resistor
B67: (C0h) ICC_MAX sug | D67: =IF(PartNumber="TPS544C26",VLOOKUP(I_lim_sel,partData!B37:D44,3,FALSE),partData!C15) -> Pinstrap | G67: kΩ | H67: Suggested ICC_MAX value for selected ILIM setting
B68: (C0h) ICC_MAX | E68: 0xE0 | G68: kΩ | H68: Selected ICC_MAX value
B69: I_lim | F69: =IF(PartNumber="TPS544C26",VLOOKUP(E68,partData!D37:E44,2,FALSE),VLOOKUP(R_ILIM,partData!D37:E44,2,FALSE)) -> 26 | G69: A | H69: ILIM setting with selected ILIM resistor
B70: Io_max_min | F70: =I_lim*(1-Tol_Ilim)+Iripple_max/2 -> 31.54985795 | G70: A | H70: Estimated minimum Iout at current limit
B71: Io_max_typ | F71: =I_lim+1/2*(Vin_nom-Vout)*Vout/(Lout_H*Vin_nom*fsw_Hz) -> 32.109375 | G71: A | H71: Estimated typical Iout at current limit
B72: Io_max_max | F72: =I_lim*(1+Tol_Ilim)+Iripple_max/2 -> 36.74985795 | G72: A | H72: Estimated maximum Iout at current limit
B73: I2C Address (h) | C73: 7C | G73: Hex(h) | H73: Selected I2C address
B74: R_I2C_rec | D74: =IF(PartNumber="TPS544C26",VLOOKUP(I2C_Address__h,partData!B73:C88,2,FALSE),partData!C15) -> Pinstrap | G74: kΩ | H74: Suggested resistor value connectd between I2C_ADDR pin and AGND
B75: Choose the Output Capacitor (Cout)
B76: The output capacitance is deteremind based on the output ripple, transient and stability requirements.
B77: Io_step | C77: 15.75 | G77: A | H77: Iout load transient step
B78: dVo_trans_perc | C78: 0.02 | H78: Target Vout overshoot/undershoot after load step as a percentage of Vout
B79: dVo_ripple_perc | C79: 0.0213 | H79: Target steady state Vout voltage ripple as a percentage of Vout
B80: Slewrate_Io_step | C80: 10 | G80: A/µs | H80: Load step slew rate
B81: dVo_trans | D81: =dVo_trans_perc*Vout -> 0.102 | G81: V | H81: Target Vout overshoot/undershoot after load step
B82: dVo_ripple | D82: =dVo_ripple_perc*Vout -> 0.10863 | G82: V | H82: Target steady state Vout voltage ripple
B83: Cout_ripple | D83: =Iripple_max/(8*dVo_ripple*fsw_Hz)*10^6 -> 23.4450024 | G83: µF | H83: Min Cout for DC ripple requirement (ignores ESR)
B84: Cout_undershoot | D84: =((Lout*Io_step^2)*(Vout/(Vin_min*fsw_Hz)+toff_min_max_sec))/(2*dVo_trans*Vout*((Vin_min-Vout)/(Vin_min*fsw_Hz)-toff_min_max_sec)) -> 148.7296173 | G84: µF | H84: Min Cout for undershoot requirement
B85: Cout_undershoot | D85: =MAX(0,Io_step/(2*dVo_trans)*(((Lout_H*Io_step)*(Vout/(Vin_min*fsw_Hz)+toff_min_max_sec))/(Vout*((Vin_min-Vout)/(Vin_min*fsw_Hz)-toff_min_max_sec))-Io_step/(Slewrate_Io_step*10^6))*10^6) -> 27.13035263 | G85: µF | H85: Min Cout for undershoot requirement (including slew rate)
B86: Cout_overshoot | D86: =Lout*Io_step^2/(2*Vout*dVo_trans) -> 71.52897924 | G86: µF | H86: Min Cout for overshoot requirement
B87: Cout_overshoot | D87: =MAX(0,Io_step/(2*dVo_trans)*(Lout_H*Io_step/Vout-Io_step/(Slewrate_Io_step*10^6))*10^6) -> 0 | G87: µF | H87: Min Cout for overshoot requirement (including slew rate)
B88: Cout_stability | D88: =(15/(PI()*fsw_Hz))^2*1/Lout_H*1000000 -> 118.7357621 | G88: µF | H88: Min Cout for stability (f_LC < fsw/30)
B89: Cout_min | D89: =MAX(D83:D88) -> 148.7296173 | G89: µF | H89: Recommended min Cout (must include any derating due to DC/AC bias, temp and/or tolerance)
B90: Cout_max | D90: =2500/(PI()^2*fsw_Hz^2*Lout_H)*1000000 -> 1319.286245 | G90: µF | H90: Max Cout for stability (f_LC > fsw/100) (Exceeding this may be ok but further validation is required)
B91: ESR_trans | D91: =dVo_trans/Io_step*1000 -> 6.476190476 | G91: mΩ | H91: Max effective ESR to meet load step transient requirement
B92: ESR_ripple | D92: =dVo_ripple/Iripple_max*1000 -> 6.664533333 | G92: mΩ | H92: Max effective ESR to meet ripple requirement
B93: ESR_max | D93: =MIN(D91:D92) -> 6.476190476 | G93: mΩ | H93: Recommanded max effective ESR (when using mixed type output capacitors, it may be possible for bulk capacitance to have higher ESR)
B94: Cout_single_cer | E94: 788 | G94: µF | H94: Nominal value of a Single Ceramic Output Capacitor
B95: Cer_derating | E95: 0.9 | H95: Percentage of Nominal Ceramic Capacitance remaining after Tolerance, Thermal, and DC Bias derating
B96: ESR_single_cer | E96: 1 | G96: mΩ | H96: Single Ceramic Capacitor ESR
B97: N_cer | E97: 1 | H97: Number of Ceramic Capacitors
B98: Cout_cer | F98: =IF(N_cer=0,0.001,N_cer*E94*Cer_derating) -> 709.2 | G98: uF | H98: Total Ceramic Output Capacitance
B99: ESR_cer | F99: =IF(N_cer=0,0,E96/N_cer) -> 1 | G99: mΩ | H99: Effective Ceramic Capacitance ESR
B100: Cout_single_bulk | E100: 0.1 | G100: uF | H100: Nominal value of a Single Bulk/Polymer/Electrolytic Output Capacitor
B101: Bulk_derating | E101: 1 | H101: Percentage of Nominal Bulk Capacitance remaining after Tolerance, Thermal, and DC Bias derating
B102: ESR_single_bulk | E102: 1 | G102: mΩ | H102: Single Bulk Capacitor ESR
B103: N_bulk | E103: 0 | H103: Number of Bulk Capacitors
B104: Cout_bulk | F104: =IF(N_bulk=0,0.001,N_bulk*E100*Bulk_derating) -> 0.001 | G104: µF | H104: Total Bulk Output Capacitance
B105: ESR_bulk | F105: =IF(N_bulk=0,10^9,E102/N_bulk) -> 1000000000 | G105: mΩ | H105: Effective Bulk Capacitance ESR
B106: Cout | F106: =Cout_bulk+Cout_cer -> 709.201 | G106: uF | H106: Total Bulk + Ceramic Output Capacitance
B107: Vo_undershoot | F107: =(Lout_H*Io_step^2)*(Vout/(Vin_min*fsw_Hz)+toff_min_max_sec)/(2*Cout_F*Vout*((Vin_min-Vout)/(Vin_min*fsw_Hz)-toff_min_max_sec))*10^3 -> 21.39086235 | G107: mV | H107: Estimated undershoot (ignores ESR and ESL)
B108: Vo_overshoot | F108: =(Lout_H*Io_step^2/(2*Vout*Cout_F))*10^3 -> 10.28757134 | G108: mV | H108: Estimated overshoot (ignores ESR and ESL)
B109: Zout_fsw | F109: =1/(1/(SQRT((ESR_bulk*10^-3)^2+1/(2*PI()*fsw_select*10^3*Cout_bulk*10^-6)^2))+1/(SQRT((ESR_cer*10^-3)^2+1/(2*PI()*fsw_select*10^3*Cout_cer*10^-6)^2)))*1000 -> 1.038600305 | G109: mΩ | H109: Output Impedance at Swiching Frequency
B110: Vo_ripple | F110: =Iripple_max*Zout_fsw -> 16.92888992 | G110: mV | H110: Estimated capacitive + resistive DC ripple (ignores ESL)
B111: f_LC | F111: =1/(2*PI()*SQRT(Lout_H*Cout_F))*0.001 -> 10.91125824 | G111: kHz | H111: LC resonant frequency (if yellow, feedforward cap recommended)
B112: f_ESR_cer | F112: =1/(2*PI()*Cout_cer*10^-6*ESR_cer*10^-3)*10^-3 -> 224.4147534 | G112: kHz | H112: Ceramic capacitor ESR zero frequency (if yellow, ESR zero may affect loop stability)
B113: f_ESR_bulk | F113: =IF(N_bulk=0,"N/A",1/(2*PI()*Cout_bulk*10^-6*ESR_bulk*10^-3)*10^-3) -> N/A | G113: kHz | H113: Bulk capacitor ESR zero frequency (if yellow, ESR zero may affect loop stability)
B114: Choose the Input Capacitor (Cin)
B115: The input capacitance is deteremind based on the input ripple requirements. Additional bulk input capacitance may be needed for transients. 0.1µF high frequency bypass capacitors are also required.
B116: Vi_ripple_percent | C116: 0.04 | H116: Target DC input ripple voltage percentage
B117: Vi_ripple_target | D117: =Vin_min*C116*1000 -> 384 | G117: mV | H117: Target DC input voltage ripple (Vi_ripple_percent of min Vin)
B118: Q_input | D118: =(Iout*(1-Vout/Vin_min)*Vout)/(fsw_Hz*Vin_min)*10^6 -> 6.225585938 | G118: µC | H118: Charge per switching cycle (Vin_min)
B119: Cin_min | D119: =MAX(Q_input/Vi_ripple_target*10^3,10) -> 16.21246338 | G119: µF | H119: Minimum input capacitance required
B120: Cin_cer | E120: 52 | G120: µF | H120: Selected total input ceramic capacitance
B121: Cin_derating | E121: 0.5 | H121: Percentage of Nominal Ceramic Capacitance remaining after Tolerance, Thermal, and DC Bias derating
B122: Cin_eff | F122: =Cin_cer*Cin_derating -> 26 | G122: µF | H122: Effective total input ceramic capacitance
B123: Vi_ripple | F123: =D118*1000/E120 -> 119.7228065 | G123: mV | H123: Input DC ripple
B124: Iin_rms | F124: =(Vout/Vin_min*((1-Vout/Vin_min)*Iout^2+ (Iripple_min^2)/12))^0.5 -> 10.13211562 | G124: A | H124: Input RMS current
B125: Determine feedback network values (FB resistor divider and Cff)
B126: Rfb_b_rec | D126: 2.61 | G126: kΩ | H126: Bottom feedback resistor (499-20k recommended)
B127: Rfb_b | E127: 5.36 | G127: kΩ | H127: Selected bottom feedback resistor
B128: Rfb_t_target | D128: =Rfb_b*(Vout/Vref-1) -> 28.81 | G128: kΩ | H128: Calculated top resistor
B129: Rfb_t_NSV | D129: =partData!V11 -> 28.7 | G129: kΩ | H129: Nearest Standard Value 1%
B130: Rfb_t | E130: 0.0001 | G130: kΩ | H130: Selected top resistor
B131: Vout_calc | F131: =Vref*(1+Rfb_t/Rfb_b) -> 0.8000149254 | G131: V | H131: Calculated Vout (yellow if not within 1% of target Vout)
B132: FF_cap? | D132: =IF(OR(Vout>1.8,f_LC<fsw_select/60),"YES","NO") -> YES | H132: Feedforward cap recommended? (if f_LC < fsw/60 OR Vout > 1.8)
B133: fz_cff_div_f_LC | D133: =IF(Vout<1.8,3,-0.625*Vout+4.125) -> 0.9375 | H133: Recommended location of fz_cff relative to f_LC (if Vout <1.8 then 3, if Vout = 5 then 1)
B134: Cff_calc | D134: =1/(2*PI()*(fz_cff_div_f_LC*f_LC)*Rfb_t)*1000000 -> 155587255.7 | G134: pF | H134: Recommended feedforward cap value
B135: Cff_NSV | D135: =IF(Cff_calc<10000,VLOOKUP((10^(LOG(Cff_calc)-INT(LOG(Cff_calc)))),c_s1:C_f1,1),VLOOKUP((10^(LOG(Cff_calc)-INT(LOG(Cff_calc)))),C_s2:C_f2,1))*10^INT(LOG(Cff_calc)) -> 150000000 | G135: pF | H135: Nearest Standard Value
B136: Cff | E136: 0 | G136: pF | H136: Selected feedforward cap value
B137: Rff_rec | D137: =Rfb_t/20 -> 5e-06 | G137: kΩ | H137: Recommended feedforward resistor
B138: Rff_NSV | D138: =(IF((10^(LOG(D137)-INT(LOG(D137)))*100)-VLOOKUP((10^(LOG(D137)-INT(LOG(D137)))*100),E96_s:E96_f,1)<VLOOKUP((10^(LOG(D137)-INT(LOG(D137)))*100),E96_s:E96_f,2)-(10^(LOG(D137)-INT(LOG(D137)))*100),VLOOKUP((10^(LOG(D137)-INT(LOG(D137)))*100),E96_s:E96_f,1),VLOOKUP((10^(LOG(D137)-INT(LOG(D137)))*100),E96_s:E96_f,2)))*10^INT(LOG(D137))/100 -> 4.99e-06 | G138: kΩ | H138: Rff nearest E96 standard value
B139: Rff | E139: 0 | G139: kΩ | H139: Selected feedforward resistor value
B140: fz_cff | F140: =IF(Cff<>0,1/(2*PI()*Cff*0.000000001*(Rfb_t+Rff)*1000),"N/A") -> N/A | G140: kHz | H140: Frequency of zero added by the feedforward cap
B141: Soft-start Resistor (SS)
B142: Tss_target | C142: 8 | G142: ms | H142: Soft-start time
B143: RAMP Selection | D143: RAMP2 | G143: - | H143: RAMP selection
B144: Fault Response | E144: Latch-off | G144: - | H144: Fault Response
B145: Soft-start Resistor | F145: =IF(AND(D143="RAMP1", Css="Latch-off"),VLOOKUP(Tss_target,partData!B52:E55,4),IF(AND(D143="RAMP2", Css="Latch-off"),VLOOKUP(Tss_target,partData!B56:E59,4),IF(AND(D143="RAMP1", Css="Hiccup"),VLOOKUP(Tss_target,partData!B60:E63,4),IF(AND(D143="RAMP2", Css="Hiccup"),VLOOKUP(Tss_target,partData!B64:E67,4),"OPEN")))) -> 8.87 | G145: kΩ | H145: SS resistor
B146: EN pin resistor divider
B147: Vstart_target | C147: =Vin_min -> 9.6 | G147: V | H147: Target turn on voltage set by EN resistor divider
B148: Ren_b_rec | D148: 10
B149: Ren_b | E149: 0 | G149: kΩ | H149: Selected bottom resistor (1k-100k recommended)
B150: Ren_b_eff | F150: =Ren_b*6000/(Ren_b+6000) -> 0 | G150: kΩ | H150: Effective bottom resistance including 6-MΩ internal pull-down resistance on EN pin
B151: Ren_t_calc | D151: =Ren_b_eff*Vstart_target/EN_rise-Ren_b_eff -> 0 | G151: kΩ | H151: Calculated top resistor
B152: Ren_t_NSV | D152: =partData!V12 -> 0 | G152: kΩ | H152: Nearest Standard Value 1%
B153: Ren_t | E153: 0 | G153: kΩ | H153: Selected top resistor
B154: Vstart_typ | F154: =IF(OR(Ren_b=0,Ren_t=0),"N/A",EN_rise*(Ren_b_eff+Ren_t)/Ren_b_eff) -> N/A | G154: V | H154: Estimated typical turn on voltage with selected resistors (Red if below Vin_min, Yellow if near Vin_min)
B155: Vstop_typ | F155: =IF(OR(Ren_b=0,Ren_t=0),"N/A",EN_fall*(Ren_b_eff+Ren_t)/Ren_b_eff) -> N/A | G155: V | H155: Estimated typical turn off voltage with selected resistors
B156: Ven_max | F156: =IF(OR(Ren_b=0,Ren_t=0),"N/A",Vin_max*Ren_b_eff/(Ren_t+Ren_b_eff)) -> N/A | G156: V | H156: Estimated maximum voltage at EN pin at max input voltage (Red if >6V)
B157: Operating Input Voltage Range
B158: fsw_select | F158: =fsw_select -> 800 | G158: kHz | H158: Chosen switching frequency
B159: Minimum Vin | F159: =IF(2*Iout*(Rdson_HS_Ohm-Rdson_LS_Ohm)-(Vout+2*Iout*(DCR_Ohm+Rdson_LS_Ohm))/(fsw_Hz*toff_min_max_sec-1)<Vin_min_IC,Vin_min_IC,2*Iout*(Rdson_HS_Ohm-Rdson_LS_Ohm)-(Vout+2*Iout*(DCR_Ohm+Rdson_LS_Ohm))/(fsw_Hz*toff_min_max_sec-1)) -> 6.600700935 | G159: V | H159: Minimum input voltage allowed for proper function, based on fsw and minimum off time
B160: Maximum Vin | F160: =IF(Vout/fsw_Hz*1/(ton_min_sec)*0.95>Vin_max_IC,Vin_max_IC,Vout/fsw_Hz*1/(ton_min_sec)*0.95) -> 18 | G160: V | H160: Maximum input voltage allowed for proper function, based on fsw and minimum on time
B161: VCC bypass capacitor, BOOT bypass capacitor, PGOOD resistor
B162: Cvcc_rec | D162: 4.7 | G162: µF | H162: At least 1 µF required
B163: Cvcc | E163: 4.7 | G163: µF | H163: Selected Cvcc
B164: Cboot_rec | D164: 0.1 | G164: µF | H164: At least 0.1µF required
B165: Cboot | E165: 0.1 | G165: µF | H165: Selected Cboot
B166: Rboot_rec | D166: =IF(AND(C29="TPS543820",Vin_max>13.5),2.2,0) -> 0 | G166: µF | H166: 0-Ω series BOOT resistor placeholder recommended in case SW voltage overshoot needs to be reduced.
B167: Rboot | E167: 0 | G167: Ω | H167: Selected Rboot.
B168: Rpg_rec | D168: 10 | G168: kΩ | H168: 1k-100k recommended
B169: Rpg | E169: 10 | G169: kΩ | H169: Selected Rpg

Sheet 6A_SchematicChecklist (hidden)
A1: Pin | B1: Name | C1: Purpose | D1: Connection For Functional Use | E1: Reasoning | F1: Recommended Component Values from Design Calculations | G1: Status | H1: Comments
A2: Control
A3: 6 | B3: FB divider | C3: Output feedback input | D3: Ensure that the feedback divider network gives the appropriate Vout based on the Vref chosen. The FB pin must be connected to the AGND pin. | F3: =CONCATENATE("Rfb_t = ",ROUND(DeviceCalculator!D128,3)," kΩ"," Rfb_b = ",ROUND(Rfb_b,3)," kΩ") -> Rfb_t = 28.81 kΩ Rfb_b = 5.36 kΩ | G3: Open
A4: 6 | B4: FB Cff | C4: Output feedback input | D4: Add a capacitor in parallel with the top feedback resistor | E4: Improves transient response and may be required for sufficient phase margin or minimizing output ripple | F4: =CONCATENATE("Cff = ",ROUND(DeviceCalculator!D134,0)," pF") -> Cff = 155587256 pF | G4: Open
A5: 6 | B5: FB Cff, FB divider | C5: Output feedback input | D5: The RC time constant between RfbTop and Cff should be less than 1.5*Tsw, where Tsw is the switching period. If a larger Cff is required, RfbTop and RfbBottom should be reduced accordingly while still maintaining the desired voltage divider ratio. For example, if Cff is doubled, RfbTop and RfbBottom should both be halved. Typically in general, Cff is not needed for Vout < 2.5 V. It is typically needed for Vout > 2.5V | E5: Larger Cff helps improve transient response, but can put a low frequency zero which can cause instability
A7: Configuration
A8: 12 | B8: MODE | C8: fsw and DCM/CCM selection | D8: Connect a resistor from MODE pin to AGND pin. 10% or better tolerance resistor is required. Use Table 1 to select the desired mode. | F8: =CONCATENATE(R_mode," kΩ") -> Float kΩ | G8: Open
A9: 12 | B9: MODE fsw setting | C9: fsw selection | D9: Selected fsw should be below the maximum limits calculated in the calculator tab | E9: When exceeding fsw_max_ton, the fsw will decrease but the output will still be regulated. When exceeding fsw_max_toff, the output will become unregulated and UVP may trip. | F9: =CONCATENATE("fsw_max_ton = ",ROUND(DeviceCalculator!D35,0)," kHz"," fsw_max_toff = ",ROUND(DeviceCalculator!D36,0)," kHz") -> fsw_max_ton = 7727 kHz fsw_max_toff = 2305 kHz | G9: Open
A10: 4 | B10: TRIP | C10: OCL detection threshold setting pin | D10: Connect the resistor from the TRIP pin to the AGND pin. Use WEBENCH or calculator to calculate the RTRIP resistor value. Recommend 1% or better resistors for RTRIP. | F10: =CONCATENATE("Valley ILIM = ",ROUND(I_lim_target,2)," A ","RTRIP = ",ROUND(Rtrip,2)," kΩ") -> Valley ILIM = 15.85 A RTRIP = 26 kΩ | G10: Open
A11: 8 | B11: SS/REFIN | C11: Soft-start time | D11: Connecting a capacitor from this pin to AGND pin programs soft-start time. Minimum soft-start time (1.5 ms) is fixed internally. A minimum 1-nF capacitor is required. | F11: =CONCATENATE("CSSREFIN = ",ROUND(DeviceCalculator!D143,0)," nF") ->  | G11: Open
A12: 9 | B12: PGOOD | C12: Open drain power good flag | D12: Connect a 1k-100k resistor to pull-up this pin. Recommend pulling up to VCC but not required. | E12: PGOOD pin is an open-drain output so a pull-up is required when used | G12: Open
A13: 5 | B13: EN | C13: Enable pin | D13: Floating this pin is not recommended. To start switching, this pin must be pulled high. The recommended max voltage rating on the EN pin is 6V. Do not connect EN pin directly to VIN unless the max VIN for your application is below 6V. When using VIN or VDD to drive the EN pin, use a resistor divider and ensure that the voltage stays below 6V. | F13: =CONCATENATE("Ren_t = ",ROUND(DeviceCalculator!D151,3)," kΩ"," Ren_b = ",ROUND(Ren_b,3)," kΩ") -> Ren_t = 0 kΩ Ren_b = 0 kΩ | G13: Open
A14: 7 | B14: AGND | C14: Ground reference for control circuits | D14: AGND must be connected to PGND | G14: Open
A16: Power Stage
A17: 3 (VIN), 1, 14 (PGND) | B17: VIN-PGND cap | C17: Conversion power input | D17: A minimum of 10-µF input capacitance is required | E17: The input capacitor Cin should be able to give minimum ripple voltage desired for the application. Use WEBENCH or calculator to calculate the input capacitance. | F17: =CONCATENATE("Cin > ",ROUND(DeviceCalculator!D119,1)," µF") -> Cin > 16.2 µF | G17: Open
A18: 3 (VIN), 1, 14 (PGND) | B18: VIN-PGND hf cap | C18: Conversion power input | D18: Include a 10nF-100nF 0402 input capacitor | E18: Minimizes high frequency voltage overshoots and undershoots from switching | F18: Cin_hf >= 10 nF | G18: Open
A19: 10 | B19: BOOT cap | C19: Supply input for high-side FET gate driver | D19: Connect at least 100-nF capacitor from the BOOT pin to the SW pin. The BOOT capacitor should be at least 10-V rated, X5R, and 0402 size. | E19: 10-V rating, X5R or better dielectric, and 0402 size or larger ensure stable capacitance across all operating conditions | F19: =CONCATENATE("Cboot >= ",ROUND(DeviceCalculator!D164,2)," µF") -> Cboot >= 0.1 µF | G19: Open
A20: 10 | B20: BOOT resistor | C20: Supply input for high-side FET gate driver | D20: Include a 0-Ω resistor in series with the BOOT capacitor with an 0402 or larger package size. Optional but highly recommended in case of layout related issues. | E20: If the SW pin overshoot is too high, populating a 4.7-Ω resistor in series with the BOOT capacitor minimizes high frequency voltage overshoots on rising edge of SW pin | F20: Rboot = 0 Ω | G20: Open
A21: 2, 11 | B21: SW | C21: Switching node | D21: Connect this pin to the output inductor | G21: Open
A22: 2, 11 | B22: SW snubber | C22: Switching node | D22: Optional RC Snubber from SW to PGND. This component can be not populated. Capacitor: typ 220 pF with 0402 package and 25V rating Resistor: typ near 6.8-Ω with minimum 0603 package | E22: If the SW pin ringing is too high, helps minimize high frequency voltage overshoots and undershoots from switching Capacitor: Minimum 25V rating to support LL voltage Resistor: Minimum 0805 package to support power loss | F22: Csnub = 220 pF Rsnub = 6.8 Ω | G22: Open
A23: N/A | B23: Lout | C23: Output inductor | D23: Use the recommended inductance in WEBENCH or calculator to meet design requirements | F23: =CONCATENATE(ROUND(DeviceCalculator!D49,2)," < Lout < ",ROUND(DeviceCalculator!D50,2)," µH") -> 0.22 < Lout < 1.12 µH | G23: Open
A24: N/A | B24: Cout | C24: Output capacitors | D24: Use the recommended capacitance in WEBENCH or calculator to meet ripple and transient requirements | E24: The maximum Cout is a recommendation only. Exceeding this may be acceptable but the stability should be evaluated by measuring the load step response or bode plot. | F24: =CONCATENATE(ROUND(DeviceCalculator!D89,1)," < Cout < ",ROUND(DeviceCalculator!D90,1)," µF") -> 148.7 < Cout < 1319.3 µF | G24: Open
A25: 13 | B25: VCC | C25: Internal 3-V LDO output | D25: Require at least 1-µF, 6.3-V rating ceramic capacitor from VCC pin to PGND pins as the bypass capacitor. 2.2-µF recommended. | E25: Minimum capacitance required for stability of the internal regulator. | F25: Cvcc >= 1 µF | G25: Open
A26: 13 | B26: VCC | C26: Internal 3-V LDO output | D26: An external bias with 3.3-V can be connected to this pin to save the power losses on the internal LDO | G26: Open

Sheet 6A_LayoutChecklist (hidden)
A1: Pin | B1: Name | C1: Purpose | D1: Placement or Routing? | E1: Remarks | F1: Status | G1: Comments
A2: Power Stage
A3: 3 (VIN), 1, 14 (PGND) | B3: VIN-PGND caps | C3: Conversion power input | D3: Placement | E3: A 0402 sized 0.01-μF to 0.1-μF bypass capacitor must be placed as close as possible to the VIN and PGND pins to bypass high frequency noise and help reduce switch node ringing. It must be placed on the same side of the PCB as the IC. Larger VIN bypass capacitors should also be placed as close as possible to VIN and PGND pins behind this capacitor to minimize the input AC-current loop. | F3: Open
A4: 13 | B4: VCC cap | C4: Internal 3-V LDO output | D4: Placement | E4: Place the VCC bypass capacitor as close as possible to the IC on the same side of the PCB. If multiple capacitors are used, provide PGND vias for each capacitor and ensure the return path is as short as possible. | F4: Open
A5: 1, 14 | B5: PGND | D5: Routing | E5: Include a large PGND pour connected to the PGND pins of the IC and include as many vias as possible for best thermal performance. | F5: Open
A6: N/A | B6: Cout and Lout | C6: Output filter inductor and capacitors | D6: Placement and Routing | E6: Highly recommended to place output and inductor on the same side of the PCB as the IC to minimize PCB parasitic impedance. If components must be placed on the other side of the PCB due to space constraints, ensure multiple vias are used to minimize the added PCB parasitic impedance. | F6: Open
A7: 10 | B7: BOOT cap and resistor | C7: Supply input for high-side FET gate driver | D7: Placement | E7: Place the BOOT resistor (if used) as close as possible to the pin, followed by the BOOT capacitor. | F7: Open
A8: 2, 11 | B8: SW | C8: Switching node | D8: Routing | E8: The PCB trace which connects the SW pins and high-voltage side of the inductor, should be as short and wide as possible to minimize PCB resistance and radiated noise. | F8: Open
A9: 2, 11 | B9: SW snubber | C9: Switching node | D9: Placement and Routing | E9: If used, keep the snubber path short for low inductance and the best possible performance. Also, to minimize inductance, avoid using vias for the RC snubber routing anduse very wide traces. To be most effective, the RC snubber should be connected between a large SW and PGND copper pour on the same side of the PCB as the IC. | F9: Open
A11: Control and Configuration
A12: 7 | B12: AGND | C12: Ground reference for control circuits | D12: Routing | E12: Create a quite AGND island for the return of noise sensitive pins. Connect AGND to PGND at a single point. For example, use vias to connect to an internal ground plane. | F12: Open
A13: 4, 6, 8 | B13: TRIP, FB, SS/REFIN | C13: Current limit, Output feedback input, and soft-start timing | D13: Placement | E13: Place the components connected to TRIP, FB and SS/REFIN as close as possible to the IC to minimize the length of trace connected to them. These components must also be returned to quite area of AGND. | F13: Open
A14: 6 | B14: FB | C14: Output feedback input | D14: Routing | E14: Connect the FB divider to the output voltage near the desired point of regulation. Avoid routing near noisy signals or power planes. | F14: Open
A15: 12 | B15: MODE | C15: Light load mode and fsw selection | D15: Routing | E15: The MODE pin resistor must be returned to the quiet AGND to ensure accurate pin detection. | F15: Open
A16: 9 | B16: PGOOD | C16: Open drain power good | D16: Placement and Routing | E16: Keep the PGOOD pull-up resistor and traces away from fast switching voltage and current paths. | F16: Open
A17: 8 | B17: EN | C17: Enable pin | D17: Placement and Routing | E17: All components and routing for the EN pin should be placed away from any high voltage switch node (itself and others), such as SW and BOOT to avoid noise coupling.

Sheet Std. R and C Values
A1: Hide Sheet
E2: Std. Resistors | J2: Capacitors
B3: Enter resistor value | C3: 100 | E3: E6 | G3: E96 | J3: Cap value | K3: 8.2e-08 | L3: pF
E4: 100 | F4: 150 | G4: 100 | H4: 102 | K4: =IF(K3*10^12<10000,IF((10^(LOG(K3*10^12)-INT(LOG(K3*10^12))))-VLOOKUP((10^(LOG(K3*10^12)-INT(LOG(K3*10^12)))),c_s1:C_f1,1)<VLOOKUP((10^(LOG(K3*10^12)-INT(LOG(K3*10^12)))),c_s1:C_f1,2)-(10^(LOG(K3*10^12)-INT(LOG(K3*10^12)))),VLOOKUP((10^(LOG(K3*10^12)-INT(LOG(K3*10^12)))),c_s1:C_f1,1),VLOOKUP((10^(LOG(K3*10^12)-INT(LOG(K3*10^12)))),c_s1:C_f1,2))*10^INT(LOG(K3*10^12)),IF((10^(LOG(K3*10^12)-INT(LOG(K3*10^12))))-VLOOKUP((10^(LOG(K3*10^12)-INT(LOG(K3*10^12)))),C_s2:C_f2,1)<VLOOKUP((10^(LOG(K3*10^12)-INT(LOG(K3*10^12)))),C_s2:C_f2,2)-(10^(LOG(K3*10^12)-INT(LOG(K3*10^12)))),VLOOKUP((10^(LOG(K3*10^12)-INT(LOG(K3*10^12)))),C_s2:C_f2,1),VLOOKUP((10^(LOG(K3*10^12)-INT(LOG(K3*10^12)))),C_s2:C_f2,2))*10^INT(LOG(K3*10^12)))*10^-12 -> 6.8e-08 | L4: pF
B5: Closest E6 Value | C5: =(IF((10^(LOG(C3)-INT(LOG(C3)))*100)-VLOOKUP((10^(LOG(C3)-INT(LOG(C3)))*100),E6_s:E6_f,1)<VLOOKUP((10^(LOG(C3)-INT(LOG(C3)))*100),E6_s:E6_f,2)-(10^(LOG(C3)-INT(LOG(C3)))*100),VLOOKUP((10^(LOG(C3)-INT(LOG(C3)))*100),E6_s:E6_f,1),VLOOKUP((10^(LOG(C3)-INT(LOG(C3)))*100),E6_s:E6_f,2)))*10^INT(LOG(C3))/100 -> 100 | E5: 150 | F5: 220 | G5: 102 | H5: 105
B6: Closest E12 Value | C6: =(IF((10^(LOG(C3)-INT(LOG(C3)))*100)-VLOOKUP((10^(LOG(C3)-INT(LOG(C3)))*100),E12_s:E12_f,1)<VLOOKUP((10^(LOG(C3)-INT(LOG(C3)))*100),E12_s:E12_f,2)-(10^(LOG(C3)-INT(LOG(C3)))*100),VLOOKUP((10^(LOG(C3)-INT(LOG(C3)))*100),E12_s:E12_f,1),VLOOKUP((10^(LOG(C3)-INT(LOG(C3)))*100),E12_s:E12_f,2)))*10^INT(LOG(C3))/100 -> 100 | E6: 220 | F6: 330 | G6: 105 | H6: 107 | J6: C values up to 10nF
B7: Closest E24 Value | C7: =(IF((10^(LOG(C3)-INT(LOG(C3)))*100)-VLOOKUP((10^(LOG(C3)-INT(LOG(C3)))*100),E24_s:E24_f,1)<VLOOKUP((10^(LOG(C3)-INT(LOG(C3)))*100),E24_s:E24_f,2)-(10^(LOG(C3)-INT(LOG(C3)))*100),VLOOKUP((10^(LOG(C3)-INT(LOG(C3)))*100),E24_s:E24_f,1),VLOOKUP((10^(LOG(C3)-INT(LOG(C3)))*100),E24_s:E24_f,2)))*10^INT(LOG(C3))/100 -> 100 | E7: 330 | F7: 470 | G7: 107 | H7: 110 | J7: 1 | K7: 1.2 | L7: =IF((10^(LOG(K3)-INT(LOG(K3))))-VLOOKUP((10^(LOG(K3)-INT(LOG(K3)))),c_s1:C_f1,1)<VLOOKUP((10^(LOG(K3)-INT(LOG(K3)))),c_s1:C_f1,2)-(10^(LOG(K3)-INT(LOG(K3)))),VLOOKUP((10^(LOG(K3)-INT(LOG(K3)))),c_s1:C_f1,1),VLOOKUP((10^(LOG(K3)-INT(LOG(K3)))),c_s1:C_f1,2)) -> 8.2
B8: Closest E48 Value | C8: =(IF((10^(LOG(C3)-INT(LOG(C3)))*100)-VLOOKUP((10^(LOG(C3)-INT(LOG(C3)))*100),E48_s:E48_f,1)<VLOOKUP((10^(LOG(C3)-INT(LOG(C3)))*100),E48_s:E48_f,2)-(10^(LOG(C3)-INT(LOG(C3)))*100),VLOOKUP((10^(LOG(C3)-INT(LOG(C3)))*100),E48_s:E48_f,1),VLOOKUP((10^(LOG(C3)-INT(LOG(C3)))*100),E48_s:E48_f,2)))*10^INT(LOG(C3))/100 -> 100 | E8: 470 | F8: 680 | G8: 110 | H8: 113 | J8: 1.2 | K8: 1.5
B9: Closest E96 Value | C9: =(IF((10^(LOG(C3)-INT(LOG(C3)))*100)-VLOOKUP((10^(LOG(C3)-INT(LOG(C3)))*100),E96_s:E96_f,1)<VLOOKUP((10^(LOG(C3)-INT(LOG(C3)))*100),E96_s:E96_f,2)-(10^(LOG(C3)-INT(LOG(C3)))*100),VLOOKUP((10^(LOG(C3)-INT(LOG(C3)))*100),E96_s:E96_f,1),VLOOKUP((10^(LOG(C3)-INT(LOG(C3)))*100),E96_s:E96_f,2)))*10^INT(LOG(C3))/100 -> 100 | E9: 680 | F9: 1000 | G9: 113 | H9: 115 | J9: 1.5 | K9: 1.8 | P9: Notes: | Q9: If I use the value in column K it rounds up
E10: E12 | G10: 115 | H10: 118 | J10: 1.8 | K10: 2.2 | Q10: If I use the value in column J it rounds down
E11: 100 | F11: 120 | G11: 118 | H11: 121 | J11: 2.2 | K11: 2.7
E12: 120 | F12: 150 | G12: 121 | H12: 124 | J12: 2.7 | K12: 3.3
E13: 150 | F13: 180 | G13: 124 | H13: 127 | J13: 3.3 | K13: 3.9
E14: 180 | F14: 220 | G14: 127 | H14: 130 | J14: 3.9 | K14: 4.7
E15: 220 | F15: 270 | G15: 130 | H15: 133 | J15: 4.7 | K15: 5.6
E16: 270 | F16: 330 | G16: 133 | H16: 137 | J16: 5.6 | K16: 6.8
E17: 330 | F17: 390 | G17: 137 | H17: 140 | J17: 6.8 | K17: 8.2
E18: 390 | F18: 470 | G18: 140 | H18: 143 | J18: 8.2 | K18: 10
E19: 470 | F19: 560 | G19: 143 | H19: 147 | J19: C values greater than 10nF
E20: 560 | F20: 680 | G20: 147 | H20: 150 | J20: 1 | K20: 1.5 | L20: =IF((10^(LOG(K3)-INT(LOG(K3))))-VLOOKUP((10^(LOG(K3)-INT(LOG(K3)))),C_s2:C_f2,1)<VLOOKUP((10^(LOG(K3)-INT(LOG(K3)))),C_s2:C_f2,2)-(10^(LOG(K3)-INT(LOG(K3)))),VLOOKUP((10^(LOG(K3)-INT(LOG(K3)))),C_s2:C_f2,1),VLOOKUP((10^(LOG(K3)-INT(LOG(K3)))),C_s2:C_f2,2)) -> 6.8
E21: 680 | F21: 820 | G21: 150 | H21: 154 | J21: 1.5 | K21: 2.2
E22: 820 | F22: 1000 | G22: 154 | H22: 158 | J22: 2.2 | K22: 3.3
E23: E24 | G23: 158 | H23: 162 | J23: 3.3 | K23: 4.7
E24: 100 | F24: 110 | G24: 162 | H24: 165 | J24: 4.7 | K24: 6.8
E25: 110 | F25: 120 | G25: 165 | H25: 169 | J25: 6.8 | K25: 10
E26: 120 | F26: 130 | G26: 169 | H26: 174
E27: 130 | F27: 150 | G27: 174 | H27: 178
E28: 150 | F28: 160 | G28: 178 | H28: 182
E29: 160 | F29: 180 | G29: 182 | H29: 187
E30: 180 | F30: 200 | G30: 187 | H30: 191
E31: 200 | F31: 220 | G31: 191 | H31: 196
E32: 220 | F32: 240 | G32: 196 | H32: 200
E33: 240 | F33: 270 | G33: 200 | H33: 205
E34: 270 | F34: 300 | G34: 205 | H34: 210
E35: 300 | F35: 330 | G35: 210 | H35: 215
E36: 330 | F36: 360 | G36: 215 | H36: 221
E37: 360 | F37: 390 | G37: 221 | H37: 226
E38: 390 | F38: 430 | G38: 226 | H38: 232
E39: 430 | F39: 470 | G39: 232 | H39: 237
E40: 470 | F40: 510 | G40: 237 | H40: 243
E41: 510 | F41: 560 | G41: 243 | H41: 249
E42: 560 | F42: 620 | G42: 249 | H42: 255
E43: 620 | F43: 680 | G43: 255 | H43: 261
E44: 680 | F44: 750 | G44: 261 | H44: 267
E45: 750 | F45: 820 | G45: 267 | H45: 274
E46: 820 | F46: 910 | G46: 274 | H46: 280
E47: 910 | F47: 1000 | G47: 280 | H47: 287
E48: E48 | G48: 287 | H48: 294
E49: 100 | F49: 105 | G49: 294 | H49: 301
E50: 105 | F50: 110 | G50: 301 | H50: 309
E51: 110 | F51: 115 | G51: 309 | H51: 316
E52: 115 | F52: 121 | G52: 316 | H52: 324
E53: 121 | F53: 127 | G53: 324 | H53: 332
E54: 127 | F54: 133 | G54: 332 | H54: 340
E55: 133 | F55: 140 | G55: 340 | H55: 348
E56: 140 | F56: 147 | G56: 348 | H56: 357
E57: 147 | F57: 154 | G57: 357 | H57: 365
E58: 154 | F58: 162 | G58: 365 | H58: 374
E59: 162 | F59: 169 | G59: 374 | H59: 383
E60: 169 | F60: 178 | G60: 383 | H60: 392
E61: 178 | F61: 187 | G61: 392 | H61: 402
E62: 187 | F62: 196 | G62: 402 | H62: 412
E63: 196 | F63: 205 | G63: 412 | H63: 422
E64: 205 | F64: 215 | G64: 422 | H64: 432
E65: 215 | F65: 226 | G65: 432 | H65: 442
E66: 226 | F66: 237 | G66: 442 | H66: 453
E67: 237 | F67: 249 | G67: 453 | H67: 464
E68: 249 | F68: 261 | G68: 464 | H68: 475
E69: 261 | F69: 274 | G69: 475 | H69: 487
E70: 274 | F70: 287 | G70: 487 | H70: 499
E71: 287 | F71: 301 | G71: 499 | H71: 511
E72: 301 | F72: 316 | G72: 511 | H72: 523
E73: 316 | F73: 332 | G73: 523 | H73: 536
E74: 332 | F74: 348 | G74: 536 | H74: 549
E75: 348 | F75: 365 | G75: 549 | H75: 562
E76: 365 | F76: 383 | G76: 562 | H76: 576
E77: 383 | F77: 402 | G77: 576 | H77: 590
E78: 402 | F78: 422 | G78: 590 | H78: 604
E79: 422 | F79: 442 | G79: 604 | H79: 619
E80: 442 | F80: 464 | G80: 619 | H80: 634
E81: 464 | F81: 487 | G81: 634 | H81: 649
E82: 487 | F82: 511 | G82: 649 | H82: 665
E83: 511 | F83: 536 | G83: 665 | H83: 681
E84: 536 | F84: 562 | G84: 681 | H84: 698
E85: 562 | F85: 590 | G85: 698 | H85: 715
E86: 590 | F86: 619 | G86: 715 | H86: 732
E87: 619 | F87: 649 | G87: 732 | H87: 750
E88: 649 | F88: 681 | G88: 750 | H88: 768
E89: 681 | F89: 715 | G89: 768 | H89: 787
E90: 715 | F90: 750 | G90: 787 | H90: 806
E91: 750 | F91: 787 | G91: 806 | H91: 825
E92: 787 | F92: 825 | G92: 825 | H92: 845
E93: 825 | F93: 866 | G93: 845 | H93: 866
E94: 866 | F94: 909 | G94: 866 | H94: 887
E95: 909 | F95: 953 | G95: 887 | H95: 909
E96: 953 | F96: 1000 | G96: 909 | H96: 931
G97: 931 | H97: 953
G98: 953 | H98: 976
G99: 976 | H99: 1000

Sheet Extra
B3: Validation Options
B4: Open
B5: Complete
B6: Not Applicable

Sheet partData
A1: 1 | B1: 2 | C1: 3 | D1: 4 | E1: 5 | F1: 6 | G1: 7 | H1: 8 | I1: 9 | J1: 10 | K1: 11 | L1: 12 | M1: 13 | N1: 14 | O1: 15 | P1: 16 | Q1: 17 | R1: 18 | S1: 19 | T1: 20 | U1: 21 | V1: 22 | W1: =V1+1 -> 23 | X1: =W1+1 -> 24 | Y1: =X1+1 -> 25 | Z1: 26 | AA1: 27 | AB1: 28
A2: Part # | B2: VIN_min | C2: VIN_max | D2: Io,rated | E2: Vref | F2: VCC LDO Voltage | G2: VIN_min_bias | H2: R_HS | I2: R_LS | J2: tonmin | K2: toffmin | L2: OC Fault | M2: OV Fault | N2: EN_rise | O2: EN_fall | P2: OC max | Q2: Ioc_neg_max | U2: Ilim_min | V2: ILIM_Tol | W2: Rboot_rec
A3: TPS544C26 | B3: 4 | C3: 18 | D3: 35 | E3: 0.8 | F3: 4.5 | G3: 2.7 | H3: 4 | I3: 1 | J3: 50 | K3: 180 | L3: Hiccup | M3: Latch Off | N3: 1.2 | O3: 1 | P3: 40 | Q3: -20 | U3: 0
A4: TPS548C26 | B4: 4 | C4: 18 | D4: 35 | E4: 0.8 | F4: 4.5 | G4: 2.7 | H4: 4 | I4: 1 | J4: 50 | K4: 180 | L4: Hiccup | M4: Latch Off | N4: =N3 -> 1.2 | O4: 1 | P4: 39 | Q4: -20 | U4: 0
AC6: 0
B7: Selected device | C7: =DeviceCalculator!C9 -> TPS548C26 | AC7: =AC98/10 -> 0.001
AC8: =AC99/10 -> 0.00102
B9: Configuration options | AC9: =AC100/10 -> 0.00105
B10: Pinstrap | W10: Extra step to round down | AC10: =AC101/10 -> 0.00107
B11: I2C | T11: rfb | U11: =DeviceCalculator!D128 -> 28.81 | V11: =INDEX(NSV,MATCH(MIN(ABS(NSV-U11)),ABS(NSV-U11),0)) -> 28.7 | AC11: =AC107/10 -> 0.00124
T12: ren | U12: =DeviceCalculator!D151 -> 0 | V12: =INDEX(NSV,MATCH(MIN(ABS(NSV-U12)),ABS(NSV-U12),0)) -> 0 | AC12: 0.00127
T13: rtrip | U13: =I_lim_rec -> 19 | V13: =INDEX(NSV,MATCH(MIN(ABS(NSV-U13)),ABS(NSV-U13),0)) -> 19.1 | W13: =INDEX(NSV,MATCH(MIN(ABS(NSV-U13/1.024)),ABS(NSV-U13/1.024),0)) -> 18.7 | X13: =IF(V13<=U13,V13,W13) -> 18.7 | AC13: 0.0013
AC14: 0.00133
B15: Frequency and LL mode | C15: =IF(OR(C7=A5,C7=A4),B10,B11) -> Pinstrap | AC15: 0.00137
F16: Pinstrap table | AC16: 0.0014
B17: fsw options | C17: LL options | F17: FSW(kHz) | G17: Mode | H17: RMODE(kΩ) | I17: =F17 -> FSW(kHz) | J17: =G17 -> Mode | AC17: 0.00143
B18: 600 | C18: FCCM | E18: =CONCATENATE(F18&G18) -> 600FCCM | F18: =B18 -> 600 | G18: =C$18 -> FCCM | H18: 0 | I18: 600 | J18: FCCM | AC18: 0.00147
B19: 800 | C19: DCM | E19: 1000FCCM | F19: =B20 -> 1000 | G19: =C$18 -> FCCM | H19: 1.5 | I19: 1000 | J19: FCCM | AC19: 0.0015
B20: 1000 | E20: 1000FCCM | F20: =B20 -> 1000 | G20: =C$18 -> FCCM | H20: 2.49 | I20: 1000 | J20: FCCM | AC20: 0.00154
B21: 1200 | E21: 1200FCCM | F21: =B21 -> 1200 | G21: =C$18 -> FCCM | H21: 3.48 | I21: 1200 | J21: FCCM | AC21: 0.00158
E22: 600DCM | F22: =B18 -> 600 | G22: =C$19 -> DCM | H22: 10.5 | I22: 600 | J22: DCM | AC22: 0.00162
E23: 800DCM | F23: =B19 -> 800 | G23: =C$19 -> DCM | H23: 12.1 | I23: 800 | J23: DCM | AC23: 0.00165
E24: 1000DCM | F24: =B20 -> 1000 | G24: =C$19 -> DCM | H24: 14 | I24: 1000 | J24: DCM | AC24: 0.00169
E25: 1200DCM | F25: =B21 -> 1200 | G25: =C$19 -> DCM | H25: 16.2 | I25: 1200 | J25: DCM | AC25: 0.00174
E26: 800FCCM | F26: =B19 -> 800 | G26: =C$18 -> FCCM | H26: Float | I26: 800 | J26: FCCM | AC26: 0.00178
AC27: 0.00182
F28: I2C tables | AC28: =AC124/10 -> 0.00187
F29: FSW(kHz) | G29: (33h) FREQUENCY_SWITCH | H29: FSW(kHz) | I29: Mode | J29: (A0h) SYS_CONFIG1 [7] | K29: Mode | AC29: 0.00191
F30: =B18 -> 600 | G30: 0x00 | H30: =F30 -> 600 | I30: =C18 -> FCCM | J30: 1 | K30: =I30 -> FCCM | AC30: 0.00196
F31: =B19 -> 800 | G31: 0x01 | H31: =F31 -> 800 | I31: =C19 -> DCM | J31: 0 | K31: =I31 -> DCM | AC31: =AC127/10 -> 0.002
F32: =B20 -> 1000 | G32: 0x02 | H32: =F32 -> 1000 | AC32: 0.00205
F33: =B21 -> 1200 | G33: 0x03 | H33: =F33 -> 1200 | AC33: 0.0021
B34: Current limit | C34: =IF(OR(C7=A5,C7=A4),B10,B11) -> Pinstrap | AC34: 0.00215
G35: TPS544C26 | AC35: 0.00221
B36: ILIM options | C36: >I_lim_target? | H36: ILIM | I36: (C0h) ICC_MAX | J36: hex | K36: ILIM | AC36: 0.00226
B37: =IF(C$7=G$35,H37,IF(C$7=G$46,H48,IF(C$7=G$57,H59))) -> 12 | C37: =AND(I_lim_target<B37,B37<>"N/A") -> FALSE | D37: =IF(C$7=G$35,J37,IF(C$7=G$46,I48,IF(C$7=G$57,I59))) -> 7.5 | E37: =B37 -> 12 | H37: 6 | I37: 000 | J37: =CONCATENATE("0x",BIN2HEX(CONCATENATE(I37,0)),"0") -> 0x00 | K37: 6 | AC37: 0.00232
B38: 19 | C38: TRUE | D38: =IF(C$7=G$35,J38,IF(C$7=G$46,I49,IF(C$7=G$57,I60))) -> 12.1 | E38: 19 | H38: 10 | I38: 001 | J38: =CONCATENATE("0x",BIN2HEX(CONCATENATE(I38,0)),"0") -> 0x20 | K38: 10 | AC38: 0.00237
B39: 26 | C39: TRUE | D39: 16.2 | E39: 26 | H39: 15 | I39: 010 | J39: 0x40 | K39: 15 | AC39: 0.00243
B40: 33 | C40: TRUE | D40: 21.5 | E40: 33 | H40: 20 | I40: 011 | J40: 0x60 | K40: 20 | AC40: 0.00249
B41: 39 | C41: TRUE | D41: 24.9 | E41: 39 | H41: 25 | I41: 100 | J41: 0x80 | K41: 25 | AC41: 0.00255
B42: N/A | C42: FALSE | D42: Invalid | E42: N/A | H42: 30 | I42: 101 | J42: 0xA0 | K42: 30 | AC42: 0.00261
B43: N/A | C43: FALSE | D43: Invalid | E43: N/A | H43: 35 | I43: 110 | J43: 0xC0 | K43: 35 | AC43: 0.00267
B44: N/A | C44: FALSE | D44: Invalid | E44: N/A | H44: 40 | I44: 111 | J44: 0xE0 | K44: 40 | AC44: 0.00274
AC45: 0.0028
G46: TPS544C27 | AC46: 0.00287
H47: ILIM | I47: RILIM | J47: ILIM | AC47: 0.00294
H48: 10 | I48: 11 | J48: =H48 -> 10 | AC48: 0.00301
B49: Soft-Start | C49: Pinstrap | H49: 15 | I49: 15.4 | J49: 15 | AC49: 0.00309
H50: 20 | I50: 21 | J50: 20 | AC50: 0.00316
B51: SS time ms | C51: RAMP | D51: Fault Response | E51: Resistance kohm | H51: 25 | I51: 26.1 | J51: 25 | AC51: 0.00324
B52: 1 | C52: RAMP1 | D52: Latch-off | E52: 0 | H52: 30 | I52: 31.6 | J52: 30 | AC52: 0.00332
B53: 2 | C53: RAMP1 | D53: Latch-off | E53: 1.5 | H53: 35 | I53: 37.4 | J53: 35 | AC53: 0.0034
B54: 4 | C54: RAMP1 | D54: Latch-off | E54: 2.49 | H54: 40 | I54: 43.2 | J54: 40 | AC54: 0.00348
B55: 8 | C55: RAMP1 | D55: Latch-off | E55: 3.48 | H55: N/A | I55: Invalid | J55: N/A | AC55: 0.00357
B56: 1 | C56: RAMP2 | D56: Latch-off | E56: 4.53 | AC56: 0.00365
B57: 2 | C57: RAMP2 | D57: Latch-off | E57: 5.76 | G57: TPS548C26 | AC57: 0.00374
B58: 4 | C58: RAMP2 | D58: Latch-off | E58: 7.32 | H58: ILIM | I58: RILIM | J58: ILIM | AC58: 0.00383
B59: 8 | C59: RAMP2 | D59: Latch-off | E59: 8.87 | H59: 12 | I59: 7.5 | J59: =H59 -> 12 | AC59: 0.00392
B60: 1 | C60: RAMP1 | D60: Hiccup | E60: 10.5 | H60: 19 | I60: 12.1 | J60: 19 | AC60: 0.00402
B61: 2 | C61: RAMP1 | D61: Hiccup | E61: 12.1 | H61: 26 | I61: 16.2 | J61: 26 | AC61: 0.00412
B62: 4 | C62: RAMP1 | D62: Hiccup | E62: 14 | H62: 33 | I62: 21.5 | J62: 33 | AC62: 0.00422
B63: 8 | C63: RAMP1 | D63: Hiccup | E63: 16.2 | H63: 39 | I63: 24.9 | J63: 39 | AC63: =AC159/10 -> 0.00432
B64: 1 | C64: RAMP2 | D64: Hiccup | E64: 18.7 | H64: N/A | I64: Invalid | J64: N/A | AC64: 0.00442
B65: 2 | C65: RAMP2 | D65: Hiccup | E65: 21.5 | H65: N/A | I65: Invalid | J65: N/A | AC65: 0.00453
B66: 4 | C66: RAMP2 | D66: Hiccup | E66: 24.9 | H66: N/A | I66: Invalid | J66: N/A | AC66: 0.00464
B67: 8 | C67: RAMP2 | D67: Hiccup | E67: 28.7 | AC67: 0.00475
B68: 4 | C68: RAMP1 | D68: Latch-off | E68: OPEN | AC68: 0.00487
AC69: 0.00499
AC70: 0.00511
AC71: 0.00523
B72: I2C Addr(h) | C72: Resistance kohm | AC72: 0.00536
B73: 70 | C73: 0 | AC73: 0.00549
B74: 71 | C74: 5.62 | AC74: 0.00562
B75: 72 | C75: 9.53 | AC75: 0.00576
B76: 73 | C76: 14 | AC76: 0.0059
B77: 74 | C77: 21 | AC77: 0.00604
B78: 75 | C78: 30.1 | AC78: 0.00619
B79: 76 | C79: 36.5 | AC79: 0.00634
B80: 77 | C80: 43.2 | AC80: 0.00649
B81: 78 | C81: 51.1 | AC81: =AC177/10 -> 0.00665
B82: 79 | C82: 61.9 | AC82: =AC178/10 -> 0.00681
B83: 7A | C83: 75 | AC83: 0.00698
B84: 7B | C84: 88.7 | AC84: 0.00715
B85: 7C | C85: 105 | AC85: 0.00732
B86: 7D | C86: 127 | AC86: 0.0075
B87: 7E | C87: 150 | AC87: 0.00768
B88: 7F | C88: floating | AC88: 0.00787
AC89: 0.00806
AC90: 0.00825
AC91: 0.00845
AC92: 0.00866
AC93: 0.00887
AC94: 0.00909
AC95: 0.00931
AC96: 0.00953
AC97: 0.00976
AC98: 0.01
AC99: 0.0102
AC100: 0.0105
AC101: 0.0107
AC102: 0.011
AC103: 0.0113
AC104: 0.0115
AC105: 0.0118
AC106: 0.0121
AC107: 0.0124
AC108: 0.0127
AC109: 0.013
AC110: 0.0133
AC111: 0.0137
AC112: 0.014
AC113: 0.0143
AC114: 0.0147
AC115: 0.015
AC116: 0.0154
AC117: 0.0158
AC118: 0.0162
AC119: 0.0165
AC120: 0.0169
AC121: 0.0174
AC122: 0.0178
AC123: 0.0182
AC124: 0.0187
AC125: 0.0191
AC126: 0.0196
AC127: 0.02
AC128: 0.0205
AC129: 0.021
AC130: 0.0215
AC131: 0.0221
AC132: 0.0226
AC133: 0.0232
AC134: 0.0237
AC135: 0.0243
AC136: 0.0249
AC137: 0.0255
AC138: 0.0261
AC139: 0.0267
AC140: 0.0274
AC141: 0.028
AC142: 0.0287
AC143: 0.0294
AC144: 0.0301
AC145: =AC241/10 -> 0.0309
AC146: 0.0316
AC147: 0.0324
AC148: 0.0332
AC149: 0.034
AC150: 0.0348
AC151: 0.0357
AC152: 0.0365
AC153: 0.0374
AC154: 0.0383
AC155: 0.0392
AC156: 0.0402
AC157: 0.0412
AC158: 0.0422
AC159: 0.0432
AC160: 0.0442
AC161: 0.0453
AC162: 0.0464
AC163: 0.0475
AC164: 0.0487
AC165: 0.0499
AC166: 0.0511
AC167: 0.0523
AC168: 0.0536
AC169: 0.0549
AC170: 0.0562
AC171: 0.0576
AC172: 0.059
AC173: 0.0604
AC174: 0.0619
AC175: 0.0634
AC176: 0.0649
AC177: 0.0665
AC178: 0.0681
AC179: 0.0698
AC180: 0.0715
AC181: 0.0732
AC182: 0.075
AC183: 0.0768
AC184: 0.0787
AC185: 0.0806
AC186: 0.0825
AC187: 0.0845
AC188: 0.0866
AC189: 0.0887
AC190: 0.0909
AC191: 0.0931
AC192: 0.0953
AC193: 0.0976
AC194: 0.1
AC195: 0.102
AC196: 0.105
AC197: 0.107
AC198: 0.11
AC199: 0.113
AC200: 0.115
AC201: 0.118
... 377 more rows

Sheet revisionNotes
A1: Date | B1: Change
A2: 2022-02-02 | B2: Remove 4C27 support, clean up drop downs and units

Sheet Disclaimer
B2: Important notice and disclaimer
B3: TI PROVIDES TECHNICAL AND RELIABILITY DATA (INCLUDING DATASHEETS), DESIGN RESOURCES (INCLUDING REFERENCE DESIGNS), APPLICATION OR OTHER DESIGN ADVICE, WEB TOOLS, SAFETY INFORMATION, AND OTHER RESOURCES “AS IS” AND WITH ALL FAULTS, AND DISCLAIMS ALL WARRANTIES, EXPRESS AND IMPLIED, INCLUDING WITHOUT LIMITATION ANY IMPLIED WARRANTIES OF MERCHANTABILITY, FITNESS FOR A PARTICULAR PURPOSE OR NON-INFRINGEMENT OF THIRD PARTY INTELLECTUAL PROPERTY RIGHTS.
B4: These resources are intended for skilled developers designing with TI products. You are solely responsible for (1) selecting the appropriate TI products for your application, (2) designing, validating and testing your application, and (3) ensuring your application meets applicable standards, and any other safety, security, or other requirements.
B5: These resources are subject to change without notice. TI grants you permission to use these resources only for development of an application that uses the TI products described in the resource. Other reproduction and display of these resources is prohibited. No license is granted to any other TI intellectual property right or to any third party intellectual property right. TI disclaims responsibility for, and you will fully indemnify TI and its representatives against, any claims, damages, costs, losses, and liabilities arising out of your use of these resources.
B6: TI’s products are provided subject to TI’s Terms of Sale or other applicable terms available either on ti.com or provided in conjunction with such TI products. TI’s provision of these resources does not expand or otherwise alter TI’s applicable warranties or warranty disclaimers for TI products.
